[Event "-chT Youth Countries 2019"]
[Site "Wuerzburg"]
[Date "2019.10.04"]
[Round "4.6"]
[White "Butenandt, Svenja"]
[Black "Kluehs, Gustaf"]
[Result "0-1"]
[ECO "E91"]
[WhiteElo "1805"]
[BlackElo "1902"]
[Annotator "NA"]
[PlyCount "59"]
[EventDate "2019.10.02"]
[EventType "team-tourn"]
[EventRounds "7"]
[EventCountry "GER"]
[SourceTitle "playchess.com"]
[Source "ChessBase"]
[SourceQuality "1"]
[WhiteTeam "Bayern 2"]
[BlackTeam "Berlin"]
[TimeControl "40/5400+30:1800+30"]

1. d4 {[%emt 0:00:00]} Nf6 {[%emt 0:00:00]} 2. c4 {[%emt 0:00:00]} g6 {[%emt 0:00:00]} 3. Nc3 {[%emt 0:00:00]} Bg7 {[%emt 0:00:00]} 4. e4 {[%emt 0:00:00]} d6 {[%emt 0:00:04]} 5. Nf3 {[%emt 0:00:00]} O-O {[%emt 0:00:09]} 6. Be2 {[%emt 0:00:00]} c5 {[%emt 0:00:08]} 7. d5 {[%emt 0:01:20]} Na6 {[%emt 0:00:11]} 8. a3 {[%emt 0:03:01]} e5 {[%emt 0:03:24]} 9. Bg5 {[%emt 0:01:36]} h6 {[%emt 0:00:55]} 10. Bd2 {[%emt 0:00:37]} Kh7 {[%emt 0:01:04]} 11. h4 {[%emt 0:11:33]} Ne8 {[%emt 0:03:55]} 12. Qc1 {[%emt 0:06:01]} f5 {[%emt 0:02:58]} 13. h5 {[%emt 0:02:23]} g5 {[%emt 0:00:33]} 14. exf5 {[%emt 0:03:42]} Bxf5 {[%emt 0:00:24]} 15. g4 {[%emt 0:01:50]} Bxg4 {[%emt 0:10:53]} 16. Nxg5+ {[%emt 0:01:42]} hxg5 {[%emt 0:00:12]} 17. Bxg4 {[%emt 0:00:10]} e4 {[%emt 0:03:28]} 18. Nxe4 {[%emt 0:09:24]} Qe7 {[%emt 0:01:48]} 19. Be6 {[%emt 0:00:38]} Nec7 {[%emt 0:01:12]} 20. Bxg5 {[%emt 0:04:34]} Qe8 {[%emt 0:00:43]} 21. Nxd6 {[%emt 0:01:07]} Qa4 {[%emt 0:05:55]} 22. Qb1+ {[%emt 0:12:51]} Kh8 {[%emt 0:00:12]} 23. Bf7 {[%emt 0:10:04]} Qa5+ {[%emt 0:04:54]} 24. Bd2 {[%emt 0:01:32]} Qb6 {[%emt 0:00:19]} 25. h6 {[%emt 0:13:17]} Bd4 {[%emt 0:01:11]} 26. Bf4 {[%emt 0:05:02]} Ne8 {[%emt 0:04:51]} 27. Nxe8 {[%emt 0:08:10]} Rxf7 {[%emt 0:00:51]} 28. Qe4 {[%emt 0:00:49]} Rxf4 {[%emt 0:00:18]} 29. Qxf4 {[%emt 0:00:04]} Rxe8+ {[%emt 0:00:17]} 30. Kf1 {[%emt 0:00:59] normal} 0-1

[Event "-chT Youth Countries 2019"]
[Site "Wuerzburg"]
[Date "2019.10.04"]
[Round "4.6"]
[White "Schwartz, Oliver"]
[Black "Gressler, Christian"]
[Result "1-0"]
[ECO "C02"]
[WhiteElo "1650"]
[BlackElo "1464"]
[Annotator "NA"]
[PlyCount "89"]
[EventDate "2019.10.02"]
[EventType "team-tourn"]
[EventRounds "7"]
[EventCountry "GER"]
[SourceTitle "playchess.com"]
[Source "ChessBase"]
[SourceQuality "1"]
[WhiteTeam "Württemberg"]
[BlackTeam "Mecklenburg-Vorpommern"]
[TimeControl "40/5400+30:1800+30"]

1. e4 {[%emt 0:00:00]} e6 {[%emt 0:00:00]} 2. d4 {[%emt 0:00:00]} d5 {[%emt 0:00:00]} 3. e5 {[%emt 0:00:00]} c5 {[%emt 0:00:00]} 4. c3 {[%emt 0:00:00]} Nc6 {[%emt 0:00:00]} 5. Nf3 {[%emt 0:00:00]} Bd7 {[%emt 0:00:08]} 6. a3 {[%emt 0:00:04]} f6 {[%emt 0:01:33]} 7. Bd3 {[%emt 0:05:05]} Qc7 {[%emt 0:02:07]} 8. Bf4 {[%emt 0:02:09]} O-O-O {[%emt 0:04:44]} 9. Bc2 {[%emt 0:07:16]} h5 {[%emt 0:08:26]} 10. h3 {[%emt 0:02:27]} Be7 {[%emt 0:15:04]} 11. b4 {[%emt 0:01:30]} g5 {[%emt 0:05:07]} 12. Bg3 {[%emt 0:01:08]} h4 {[%emt 0:01:09]} 13. Bh2 {[%emt 0:00:20]} f5 {[%emt 0:00:50]} 14. bxc5 {[%emt 0:00:48]} Nh6 {[%emt 0:04:24]} 15. Nfd2 {[%emt 0:15:25]} Rdg8 {[%emt 0:10:11]} 16. a4 {[%emt 0:04:45]} g4 {[%emt 0:05:31]} 17. Bf4 {[%emt 0:01:52]} Bg5 {[%emt 0:03:56]} 18. Bxg5 {[%emt 0:01:22]} Rxg5 {[%emt 0:00:09]} 19. Na3 {[%emt 0:00:27]} a6 {[%emt 0:03:51]} 20. Bd3 {[%emt 0:08:30]} gxh3 {[%emt 0:02:58]} 21. gxh3 {[%emt 0:00:32]} Nxe5 {[%emt 0:02:42]} 22. Be2 {[%emt 0:17:46]} Nc6 {[%emt 0:04:13]} 23. Nf3 {[%emt 0:02:07]} Rg7 {[%emt 0:00:30]} 24. Nc2 {[%emt 0:01:43]} Nf7 {[%emt 0:01:31]} 25. Nb4 {[%emt 0:00:59]} Ng5 {[%emt 0:01:53]} 26. Rb1 {[%emt 0:06:21]} Nxf3+ {[%emt 0:01:03]} 27. Bxf3 {[%emt 0:00:12]} Rhg8 {[%emt 0:03:50]} 28. Kf1 {[%emt 0:00:46]} Qa5 {[%emt 0:03:21]} 29. Qe2 {[%emt 0:07:53]} Rg6 {[%emt 0:02:41]} 30. Nxc6 {[%emt 0:01:31]} Bxc6 {[%emt 0:00:16]} 31. c4 {[%emt 0:01:03]} Qxa4 {[%emt 0:01:45]} 32. cxd5 {[%emt 0:00:45]} Bb5 {[%emt 0:00:16]} 33. Rxb5 {[%emt 0:00:47]} Qxb5 {[%emt 0:00:06]} 34. Qxb5 {[%emt 0:00:17]} axb5 {[%emt 0:00:06]} 35. d6 {[%emt 0:00:14]} b4 {[%emt 0:00:56]} 36. Bd1 {[%emt 0:00:57]} Rd8 {[%emt 0:01:34]} 37. Bb3 {[%emt 0:00:46]} b5 {[%emt 0:03:35]} 38. Ke2 {[%emt 0:00:59]} Kd7 {[%emt 0:02:41]} 39. Ra1 {[%emt 0:00:45]} e5 {[%emt 0:02:39]} 40. Ra7+ {[%emt 0:01:36]} Kc8 {[%emt 0:00:59]} 41. dxe5 {[%emt 0:31:57]} Kb8 {[%emt 0:04:16]} 42. Ra5 {[%emt 0:00:00]} Re8 {[%emt 0:02:32]} 43. e6 {[%emt 0:00:00]} Rgxe6+ {[%emt 0:04:10]} 44. Bxe6 {[%emt 0:00:00]} Rxe6+ {[%emt 0:00:03]} 45. Kf3 {[%emt 0:00:00] normal} 1-0

[Event "-chT Youth Countries 2019"]
[Site "Wuerzburg"]
[Date "2019.10.04"]
[Round "4.6"]
[White "Pavlov, Liliane"]
[Black "Wang, Xinyuan"]
[Result "1-0"]
[ECO "E10"]
[WhiteElo "1632"]
[BlackElo "2020"]
[Annotator "NA"]
[PlyCount "91"]
[EventDate "2019.10.02"]
[EventType "team-tourn"]
[EventRounds "7"]
[EventCountry "GER"]
[SourceTitle "playchess.com"]
[Source "ChessBase"]
[SourceQuality "1"]
[WhiteTeam "Team Süd"]
[BlackTeam "Baden 1"]
[TimeControl "40/5400+30:1800+30"]

1. d4 {[%emt 0:00:00]} Nf6 {[%emt 0:00:00]} 2. c4 {[%emt 0:00:00]} e6 {[%emt 0:00:00]} 3. Nf3 {[%emt 0:00:00]} d5 {[%emt 0:00:00]} 4. g3 {[%emt 0:00:12]} c6 {[%emt 0:01:52]} 5. Bg2 {[%emt 0:01:00]} Bd6 {[%emt 0:01:10]} 6. c5 {[%emt 0:01:22]} Bc7 {[%emt 0:00:09]} 7. O-O {[%emt 0:00:27]} Nbd7 {[%emt 0:00:24]} 8. Nc3 {[%emt 0:01:01]} b6 {[%emt 0:02:05]} 9. b4 {[%emt 0:00:57]} a5 {[%emt 0:00:43]} 10. cxb6 {[%emt 0:01:30]} Bxb6 {[%emt 0:01:04]} 11. b5 {[%emt 0:01:04]} c5 {[%emt 0:02:30]} 12. dxc5 {[%emt 0:03:07]} Bxc5 {[%emt 0:00:44]} 13. Na4 {[%emt 0:01:48]} Bd6 {[%emt 0:01:34]} 14. h3 {[%emt 0:01:47]} O-O {[%emt 0:00:44]} 15. Be3 {[%emt 0:01:22]} Rb8 {[%emt 0:01:22]} 16. Rb1 {[%emt 0:00:57]} e5 {[%emt 0:01:03]} 17. Ba7 {[%emt 0:02:16]} Ra8 {[%emt 0:01:26]} 18. b6 {[%emt 0:01:52]} Bb7 {[%emt 0:00:11]} 19. Qb3 {[%emt 0:03:42]} Re8 {[%emt 0:04:16]} 20. Rfc1 {[%emt 0:03:24]} Qe7 {[%emt 0:13:17]} 21. Qb5 {[%emt 0:02:54]} e4 {[%emt 0:03:51]} 22. Nd4 {[%emt 0:02:39]} e3 {[%emt 0:01:45]} 23. f4 {[%emt 0:05:07]} Rec8 {[%emt 0:05:13]} 24. Nf5 {[%emt 0:03:19]} Qe6 {[%emt 0:00:13]} 25. Nxd6 {[%emt 0:01:03]} Qxd6 {[%emt 0:00:13]} 26. Qxa5 {[%emt 0:01:20]} Nh5 {[%emt 0:01:06]} 27. Rc7 {[%emt 0:18:14]} Qg6 {[%emt 0:05:16]} 28. Qe1 {[%emt 0:05:45]} Rxc7 {[%emt 0:02:38]} 29. bxc7 {[%emt 0:01:02]} Bc8 {[%emt 0:02:48]} 30. Nb6 {[%emt 0:02:48]} Nxb6 {[%emt 0:04:46]} 31. Rxb6 {[%emt 0:03:50]} Qf5 {[%emt 0:01:09]} 32. Rd6 {[%emt 0:04:37]} Bd7 {[%emt 0:03:01]} 33. Rxd5 {[%emt 0:03:41]} Qe6 {[%emt 0:00:54]} 34. Re5 {[%emt 0:00:45]} Rxa7 {[%emt 0:01:18]} 35. Rxe6 {[%emt 0:00:13]} fxe6 {[%emt 0:01:00]} 36. Qc3 {[%emt 0:04:11]} Bc8 {[%emt 0:07:37]} 37. Qc5 {[%emt 0:02:18]} Rxa2 {[%emt 0:01:04]} 38. Qxh5 {[%emt 0:00:13]} g6 {[%emt 0:00:39]} 39. Qb5 {[%emt 0:00:42]} e5 {[%emt 0:01:17]} 40. Bd5+ {[%emt 0:00:21]} Kg7 {[%emt 0:00:11]} 41. Bxa2 {[%emt 0:30:13]} exf4 {[%emt 0:30:06]} 42. Qe5+ {[%emt 0:00:18]} Kh6 {[%emt 0:00:22]} 43. Qxf4+ {[%emt 0:00:22]} Kg7 {[%emt 0:00:07]} 44. Qf7+ {[%emt 0:00:13]} Kh6 {[%emt 0:00:06]} 45. Qf8+ {[%emt 0:00:21]} Kh5 {[%emt 0:00:23]} 46. Qxc8 {[%emt 0:00:32] normal} 1-0

[Event "-chT Youth Countries 2019"]
[Site "Wuerzburg"]
[Date "2019.10.04"]
[Round "4.6"]
[White "Hubert, Charlotte"]
[Black "Reuter, Elisa"]
[Result "0-1"]
[ECO "B30"]
[WhiteElo "1341"]
[BlackElo "1873"]
[Annotator "NA"]
[PlyCount "58"]
[EventDate "2019.10.02"]
[EventType "team-tourn"]
[EventRounds "7"]
[EventCountry "GER"]
[SourceTitle "playchess.com"]
[Source "ChessBase"]
[SourceQuality "1"]
[WhiteTeam "Hamburg/Schleswig-Holstein"]
[BlackTeam "Thüringen"]
[TimeControl "40/5400+30:1800+30"]

1. e4 {[%emt 0:00:00]} c5 {[%emt 0:00:00]} 2. Nf3 {[%emt 0:00:00]} Nc6 {[%emt 0:00:00]} 3. c3 {[%emt 0:00:01]} Nf6 {[%emt 0:00:00]} 4. e5 {[%emt 0:00:27]} Nd5 {[%emt 0:00:00]} 5. d4 {[%emt 0:00:26]} cxd4 {[%emt 0:00:00]} 6. cxd4 {[%emt 0:00:16]} d6 {[%emt 0:00:00]} 7. Bc4 {[%emt 0:00:38]} Nb6 {[%emt 0:00:07]} 8. Bb5 {[%emt 0:00:12]} dxe5 {[%emt 0:00:15]} 9. Nxe5 {[%emt 0:00:36]} Bd7 {[%emt 0:00:06]} 10. Nxd7 {[%emt 0:00:13]} Qxd7 {[%emt 0:00:08]} 11. Nc3 {[%emt 0:00:50]} e6 {[%emt 0:00:19]} 12. O-O {[%emt 0:00:38]} Be7 {[%emt 0:01:21]} 13. Re1 {[%emt 0:04:19]} O-O {[%emt 0:00:58]} 14. Be3 {[%emt 0:04:17]} a6 {[%emt 0:05:06]} 15. Bf1 {[%emt 0:17:12]} Nd5 {[%emt 0:05:16]} 16. Qd2 {[%emt 0:05:24]} Rfd8 {[%emt 0:01:52]} 17. Red1 {[%emt 0:03:51]} Rac8 {[%emt 0:03:07]} 18. Rac1 {[%emt 0:05:18]} Bb4 {[%emt 0:02:24]} 19. Qe2 {[%emt 0:09:32]} Nce7 {[%emt 0:14:17]} 20. Ne4 {[%emt 0:05:52]} Nxe3 {[%emt 0:05:43]} 21. fxe3 {[%emt 0:01:09]} Nd5 {[%emt 0:00:36]} 22. a3 {[%emt 0:03:24]} Be7 {[%emt 0:01:16]} 23. Qf3 {[%emt 0:12:26]} Rxc1 {[%emt 0:08:16]} 24. Rxc1 {[%emt 0:00:09]} Rc8 {[%emt 0:00:20]} 25. Rxc8+ {[%emt 0:01:45]} Qxc8 {[%emt 0:00:09]} 26. Nf2 {[%emt 0:06:17]} Qc1 {[%emt 0:13:57]} 27. Nd1 {[%emt 0:02:40]} Bg5 {[%emt 0:01:29]} 28. e4 {[%emt 0:03:32]} Ne3 {[%emt 0:03:33]} 29. Qg3 {[%emt 0:02:12]} h6 {[%emt 0:00:46] normal} 0-1

[Event "-chT Youth Countries 2019"]
[Site "Wuerzburg"]
[Date "2019.10.04"]
[Round "4.7"]
[White "Wiesner, Paula"]
[Black "Fuchs, Florian"]
[Result "1-0"]
[ECO "D27"]
[WhiteElo "1958"]
[BlackElo "2256"]
[Annotator "NA"]
[PlyCount "95"]
[EventDate "2019.10.02"]
[EventType "team-tourn"]
[EventRounds "7"]
[EventCountry "GER"]
[SourceTitle "playchess.com"]
[Source "ChessBase"]
[SourceQuality "1"]
[WhiteTeam "Berlin"]
[BlackTeam "Bayern 2"]
[TimeControl "40/5400+30:1800+30"]

1. d4 {[%emt 0:00:00]} d5 {[%emt 0:00:00]} 2. c4 {[%emt 0:00:00]} dxc4 {[%emt 0:00:00]} 3. Nf3 {[%emt 0:00:00]} Nf6 {[%emt 0:00:08]} 4. e3 {[%emt 0:00:46]} e6 {[%emt 0:00:08]} 5. Bxc4 {[%emt 0:00:12]} c5 {[%emt 0:00:06]} 6. O-O {[%emt 0:01:37]} a6 {[%emt 0:00:12]} 7. a4 {[%emt 0:04:21]} Nc6 {[%emt 0:00:11]} 8. Nc3 {[%emt 0:00:38]} Be7 {[%emt 0:02:17]} 9. d5 {[%emt 0:09:32]} exd5 {[%emt 0:06:52]} 10. Nxd5 {[%emt 0:00:34]} O-O {[%emt 0:21:05]} 11. Nxe7+ {[%emt 0:04:12]} Qxe7 {[%emt 0:00:18]} 12. h3 {[%emt 0:01:04]} b6 {[%emt 0:02:32]} 13. b3 {[%emt 0:03:19]} Rd8 {[%emt 0:05:55]} 14. Qe2 {[%emt 0:00:38]} Na5 {[%emt 0:04:24]} 15. Bb2 {[%emt 0:03:20]} Nxc4 {[%emt 0:10:02]} 16. Qxc4 {[%emt 0:02:20]} Nd5 {[%emt 0:01:00]} 17. Ne5 {[%emt 0:10:34]} Qe8 {[%emt 0:02:04]} 18. e4 {[%emt 0:05:09]} Nb4 {[%emt 0:00:57]} 19. Rad1 {[%emt 0:02:46]} Be6 {[%emt 0:00:33]} 20. Qc3 {[%emt 0:01:14]} f6 {[%emt 0:00:33]} 21. Nc4 {[%emt 0:01:58]} Qc6 {[%emt 0:09:55]} 22. Ba3 {[%emt 0:05:08]} a5 {[%emt 0:04:17]} 23. e5 {[%emt 0:03:24]} f5 {[%emt 0:02:08]} 24. Rd6 {[%emt 0:02:04]} Rxd6 {[%emt 0:00:32]} 25. exd6 {[%emt 0:00:27]} Kf8 {[%emt 0:05:02]} 26. Bb2 {[%emt 0:02:32]} Ra7 {[%emt 0:00:09]} 27. Qe5 {[%emt 0:09:36]} Bxc4 {[%emt 0:04:53]} 28. bxc4 {[%emt 0:00:07]} Qe4 {[%emt 0:00:17]} 29. d7 {[%emt 0:04:54]} Rxd7 {[%emt 0:00:39]} 30. Qb8+ {[%emt 0:00:07]} Kf7 {[%emt 0:00:27]} 31. Qxb6 {[%emt 0:00:15]} Qxc4 {[%emt 0:00:35]} 32. Rc1 {[%emt 0:02:28]} Qe6 {[%emt 0:01:44]} 33. Qxe6+ {[%emt 0:03:31]} Kxe6 {[%emt 0:00:07]} 34. Rxc5 {[%emt 0:00:14]} Rd1+ {[%emt 0:05:50]} 35. Kh2 {[%emt 0:00:03]} Nd3 {[%emt 0:00:18]} 36. Rc6+ {[%emt 0:03:31]} Kd5 {[%emt 0:00:56]} 37. Rb6 {[%emt 0:00:35]} g6 {[%emt 0:05:23]} 38. Bc3 {[%emt 0:04:21]} Nxf2 {[%emt 0:01:19]} 39. Bxa5 {[%emt 0:00:08]} f4 {[%emt 0:00:09]} 40. g4 {[%emt 0:00:47]} Ke4 {[%emt 0:03:08]} 41. Kg2 {[%emt 0:33:11]} Ke3 {[%emt 0:31:25]} 42. Re6+ {[%emt 0:05:23]} Ne4 {[%emt 0:00:24]} 43. Bb6+ {[%emt 0:00:04]} Kd3 {[%emt 0:00:05]} 44. Re7 {[%emt 0:00:33]} Rb1 {[%emt 0:00:00]} 45. a5 {[%emt 0:00:00]} Rb2+ {[%emt 0:00:00]} 46. Kf3 {[%emt 0:00:00]} Nf6 {[%emt 0:00:00]} 47. Re5 {[%emt 0:00:00]} Rb4 {[%emt 0:00:00]} 48. Bd8 {[%emt 0:00:00] normal} 1-0

[Event "-chT Youth Countries 2019"]
[Site "Wuerzburg"]
[Date "2019.10.04"]
[Round "4.7"]
[White "Bardorz, Jana"]
[Black "Yue, Qizhou"]
[Result "1/2-1/2"]
[ECO "B48"]
[WhiteElo "1929"]
[BlackElo "1810"]
[Annotator "NA"]
[PlyCount "45"]
[EventDate "2019.10.02"]
[EventType "team-tourn"]
[EventRounds "7"]
[EventCountry "GER"]
[SourceTitle "playchess.com"]
[Source "ChessBase"]
[SourceQuality "1"]
[WhiteTeam "Bayern 1"]
[BlackTeam "Rheinland-Pfalz"]
[TimeControl "40/5400+30:1800+30"]

1. e4 {[%emt 0:00:00]} c5 {[%emt 0:00:00]} 2. Nf3 {[%emt 0:00:00]} e6 {[%emt 0:00:00]} 3. d4 {[%emt 0:00:00]} cxd4 {[%emt 0:00:00]} 4. Nxd4 {[%emt 0:00:00]} Nc6 {[%emt 0:00:01]} 5. Nc3 {[%emt 0:00:00]} Qc7 {[%emt 0:00:09]} 6. Be3 {[%emt 0:00:00]} a6 {[%emt 0:00:08]} 7. Qf3 {[%emt 0:00:03]} Ne5 {[%emt 0:00:11]} 8. Qg3 {[%emt 0:00:33]} h5 {[%emt 0:00:11]} 9. h4 {[%emt 0:06:42]} d6 {[%emt 0:00:52]} 10. O-O-O {[%emt 0:04:47]} b5 {[%emt 0:01:27]} 11. a3 {[%emt 0:03:46]} Bb7 {[%emt 0:02:44]} 12. Bf4 {[%emt 0:08:54]} O-O-O {[%emt 0:07:53]} 13. f3 {[%emt 0:08:16]} Nf6 {[%emt 0:27:15]} 14. Rd2 {[%emt 0:05:03]} Be7 {[%emt 0:10:43]} 15. Be2 {[%emt 0:04:01]} Nc4 {[%emt 0:05:24]} 16. Bxc4 {[%emt 0:02:39]} Qxc4 {[%emt 0:01:46]} 17. Nb3 {[%emt 0:07:56]} d5 {[%emt 0:18:08]} 18. Na5 {[%emt 0:08:38]} Qc5 {[%emt 0:01:00]} 19. Nxb7 {[%emt 0:01:02]} Kxb7 {[%emt 0:00:16]} 20. exd5 {[%emt 0:02:40]} Nxd5 {[%emt 0:00:49]} 21. Nxd5 {[%emt 0:00:45]} Rxd5 {[%emt 0:00:53]} 22. Rxd5 {[%emt 0:02:05]} exd5 {[%emt 0:03:00] normal} 23. Rd1 {[%emt 0:03:25] normal} 1/2-1/2

[Event "-chT Youth Countries 2019"]
[Site "Wuerzburg"]
[Date "2019.10.04"]
[Round "4.7"]
[White "Mundt, Alexandra"]
[Black "Buchholz, Maja"]
[Result "1/2-1/2"]
[ECO "C06"]
[WhiteElo "1760"]
[BlackElo "1671"]
[Annotator "NA"]
[PlyCount "86"]
[EventDate "2019.10.02"]
[EventType "team-tourn"]
[EventRounds "7"]
[EventCountry "GER"]
[SourceTitle "playchess.com"]
[Source "ChessBase"]
[SourceQuality "1"]
[WhiteTeam "Schleswig-Holstein"]
[BlackTeam "Hessen"]
[TimeControl "40/5400+30:1800+30"]

1. e4 {[%emt 0:00:00]} e6 {[%emt 0:00:00]} 2. d4 {[%emt 0:00:00]} d5 {[%emt 0:00:00]} 3. Nd2 {[%emt 0:00:00]} Nf6 {[%emt 0:00:00]} 4. e5 {[%emt 0:00:00]} Nfd7 {[%emt 0:00:00]} 5. Bd3 {[%emt 0:00:03]} c5 {[%emt 0:00:00]} 6. c3 {[%emt 0:00:06]} Nc6 {[%emt 0:00:18]} 7. Ne2 {[%emt 0:00:49]} cxd4 {[%emt 0:01:01]} 8. cxd4 {[%emt 0:00:08]} f6 {[%emt 0:00:57]} 9. exf6 {[%emt 0:00:35]} Nxf6 {[%emt 0:00:19]} 10. O-O {[%emt 0:00:53]} Bd6 {[%emt 0:00:23]} 11. Nf3 {[%emt 0:01:40]} Qc7 {[%emt 0:00:28]} 12. h3 {[%emt 0:02:21]} O-O {[%emt 0:00:49]} 13. Be3 {[%emt 0:03:34]} Bd7 {[%emt 0:01:54]} 14. Nc3 {[%emt 0:07:32]} a6 {[%emt 0:02:34]} 15. Rc1 {[%emt 0:03:14]} Be8 {[%emt 0:06:53]} 16. Ng5 {[%emt 0:12:11]} Qe7 {[%emt 0:08:15]} 17. Re1 {[%emt 0:20:28]} h6 {[%emt 0:05:13]} 18. Nf3 {[%emt 0:00:32]} Bh5 {[%emt 0:14:54]} 19. Be2 {[%emt 0:03:21]} Bg6 {[%emt 0:04:21]} 20. a3 {[%emt 0:09:19]} Qf7 {[%emt 0:13:15]} 21. Qd2 {[%emt 0:12:35]} Ne4 {[%emt 0:03:50]} 22. Nxe4 {[%emt 0:00:45]} Bxe4 {[%emt 0:00:48]} 23. b4 {[%emt 0:13:05]} Qf6 {[%emt 0:06:04]} 24. Qb2 {[%emt 0:01:57]} e5 {[%emt 0:11:10]} 25. dxe5 {[%emt 0:03:46]} Nxe5 {[%emt 0:01:37]} 26. Bd4 {[%emt 0:00:49]} Rae8 {[%emt 0:05:17]} 27. Nxe5 {[%emt 0:01:47]} Bxe5 {[%emt 0:00:22]} 28. Rcd1 {[%emt 0:00:31]} Qxf2+ {[%emt 0:01:33]} 29. Bxf2 {[%emt 0:00:01]} Bxb2 {[%emt 0:00:12]} 30. Bc5 {[%emt 0:00:37]} Rf6 {[%emt 0:04:54]} 31. Bf3 {[%emt 0:02:00]} Bxa3 {[%emt 0:02:18]} 32. Rxd5 {[%emt 0:00:20]} Rfe6 {[%emt 0:02:57]} 33. Rd7 {[%emt 0:00:51]} Bxf3 {[%emt 0:02:28]} 34. Rxe6 Rxe6 {[%emt 0:00:20]} 35. gxf3 {[%emt 0:00:02]} b6 {[%emt 0:00:14]} 36. Bd4 {[%emt 0:00:02]} Rg6+ {[%emt 0:00:19]} 37. Kf2 {[%emt 0:00:15]} Bxb4 {[%emt 0:00:17]} 38. Rb7 {[%emt 0:00:46]} Ba5 {[%emt 0:00:27]} 39. Be3 {[%emt 0:01:56]} Kh7 {[%emt 0:00:32]} 40. Bd4 {[%emt 0:00:25]} b5 {[%emt 0:00:29]} 41. f4 {[%emt 0:01:28]} Kg8 {[%emt 0:07:17]} 42. Rb8+ {[%emt 0:09:20]} Kh7 {[%emt 0:00:54]} 43. Rb7 {[%emt 0:00:07]} Bb4 {[%emt 0:01:36] normal} 1/2-1/2

[Event "-chT Youth Countries 2019"]
[Site "Wuerzburg"]
[Date "2019.10.04"]
[Round "4.7"]
[White "Bock, Marlon"]
[Black "Rempe, Mieke"]
[Result "1-0"]
[ECO "D05"]
[WhiteElo "1671"]
[BlackElo "1530"]
[Annotator "NA"]
[PlyCount "69"]
[EventDate "2019.10.02"]
[EventType "team-tourn"]
[EventRounds "7"]
[EventCountry "GER"]
[SourceTitle "playchess.com"]
[Source "ChessBase"]
[SourceQuality "1"]
[WhiteTeam "Thüringen"]
[BlackTeam "Hamburg/Schleswig-Holstein"]
[TimeControl "40/5400+30:1800+30"]

1. d4 {[%emt 0:00:00]} Nf6 {[%emt 0:00:00]} 2. Nf3 {[%emt 0:00:00]} d5 {[%emt 0:00:52]} 3. e3 {[%emt 0:00:27]} e6 {[%emt 0:01:02]} 4. Bd3 {[%emt 0:00:51]} b6 {[%emt 0:01:17]} 5. O-O {[%emt 0:01:05]} Bb7 {[%emt 0:00:37]} 6. b3 {[%emt 0:00:56]} Bd6 {[%emt 0:01:07]} 7. Bb2 {[%emt 0:00:54]} O-O {[%emt 0:01:02]} 8. Nbd2 {[%emt 0:01:08]} Ne4 {[%emt 0:01:27]} 9. Ne5 {[%emt 0:01:05]} f5 {[%emt 0:03:28]} 10. f4 {[%emt 0:01:18]} Nd7 {[%emt 0:09:45]} 11. Ndf3 {[%emt 0:03:26]} Rf6 {[%emt 0:05:23]} 12. Qe2 {[%emt 0:07:55]} Rh6 {[%emt 0:03:02]} 13. Rac1 {[%emt 0:09:47]} Ndf6 {[%emt 0:02:18]} 14. c4 {[%emt 0:03:24]} Ng4 {[%emt 0:02:31]} 15. Nxg4 {[%emt 0:10:43]} fxg4 {[%emt 0:01:51]} 16. Bxe4 {[%emt 0:00:17]} dxe4 {[%emt 0:05:15]} 17. Ne5 {[%emt 0:00:42]} Bxe5 {[%emt 0:01:20]} 18. fxe5 {[%emt 0:02:21]} Rxh2 {[%emt 0:03:13]} 19. Qxg4 {[%emt 0:03:17]} Rh6 {[%emt 0:00:25]} 20. Ba3 {[%emt 0:01:21]} Rg6 {[%emt 0:12:02]} 21. Qf4 {[%emt 0:01:44]} Qe8 {[%emt 0:10:42]} 22. Rc2 {[%emt 0:04:19]} h6 {[%emt 0:05:07]} 23. Rcf2 {[%emt 0:02:00]} Kh7 {[%emt 0:01:34]} 24. Qf7 {[%emt 0:01:28]} Qxf7 {[%emt 0:01:58]} 25. Rxf7 {[%emt 0:00:10]} Rc8 {[%emt 0:00:15]} 26. Re7 {[%emt 0:01:05]} Ba8 {[%emt 0:01:08]} 27. Rff7 {[%emt 0:01:29]} c5 {[%emt 0:01:56]} 28. dxc5 {[%emt 0:00:35]} bxc5 {[%emt 0:00:07]} 29. Rxa7 {[%emt 0:01:02]} Rd8 {[%emt 0:00:51]} 30. Rad7 {[%emt 0:00:32]} Rc8 {[%emt 0:00:31]} 31. Rc7 {[%emt 0:00:46]} Rd8 {[%emt 0:00:08]} 32. Rfd7 {[%emt 0:00:07]} Rxd7 {[%emt 0:01:05]} 33. Rxd7 {[%emt 0:00:02]} Rg5 {[%emt 0:00:13]} 34. Bb2 {[%emt 0:01:00]} Kg6 {[%emt 0:01:40]} 35. Rc7 {[%emt 0:00:27] normal} 1-0